[Event "Titled Tuesday Blitz June 15 2021"]
[White "Goryachkina, Aleksandra"]
[Black "Przybylski, Wojciech"]
[WhiteFideId "4147103"]
[BlackFideId "1117599"]
[WhiteElo "2441"]
[BlackElo "2317"]
[Result "1-0"]
[Round "03"]
[TimeControl "180+1"]
[Date "2021.06.15"]
[WhiteClock "0:00:06"]
[BlackClock "0:00:01"]

1. e4 {[%clk 0:03:00]}  e5 {[%clk 0:02:59]} 2. Nf3 {[%clk 0:02:59]}  Nc6 {[%clk 0:02:58]} 3. Nc3 {[%clk 0:02:58]}  Nf6 {[%clk 0:02:58]} 4. d4 {[%clk 0:02:58]}  exd4 {[%clk 0:02:58]} 5. Nxd4 {[%clk 0:02:59]}  Bb4 {[%clk 0:02:58]} 6. Nxc6 {[%clk 0:02:59]}  bxc6 {[%clk 0:02:57]} 7. Bd3 {[%clk 0:02:59]}  d5 {[%clk 0:02:57]} 8. exd5 {[%clk 0:02:59]}  O-O {[%clk 0:02:57]} 9. O-O {[%clk 0:03:00]}  cxd5 {[%clk 0:02:57]} 10. h3 {[%clk 0:02:59]}  c6 {[%clk 0:02:55]} 11. Qf3 {[%clk 0:02:59]}  Bd6 {[%clk 0:02:49]} 12. Bg5 {[%clk 0:02:52]}  h6 {[%clk 0:02:49]} 13. Bh4 {[%clk 0:02:49]}  Be5 {[%clk 0:02:45]} 14. Rae1 {[%clk 0:02:31]}  Re8 {[%clk 0:02:41]} 15. Na4 {[%clk 0:02:08]}  Rb8 {[%clk 0:02:10]} 16. b3 {[%clk 0:02:07]}  Rb4 {[%clk 0:02:01]} 17. Bg3 {[%clk 0:01:57]}  Qd6 {[%clk 0:01:26]} 18. c3 {[%clk 0:01:42]}  Rb8 {[%clk 0:01:19]} 19. c4 {[%clk 0:01:39]}  Bd7 {[%clk 0:01:11]} 20. Bxe5 {[%clk 0:01:11]}  Rxe5 {[%clk 0:01:10]} 21. Rxe5 {[%clk 0:01:08]}  Qxe5 {[%clk 0:01:10]} 22. Nc5 {[%clk 0:01:04]}  Re8 {[%clk 0:00:38]} 23. cxd5 {[%clk 0:00:58]}  cxd5 {[%clk 0:00:35]} 24. Nxd7 {[%clk 0:00:37]}  Nxd7 {[%clk 0:00:36]} 25. Bb5 {[%clk 0:00:33]}  Rd8 {[%clk 0:00:36]} 26. Bxd7 {[%clk 0:00:29]}  Rxd7 {[%clk 0:00:36]} 27. Rc1 {[%clk 0:00:29]}  Rd8 {[%clk 0:00:26]} 28. Qd3 {[%clk 0:00:28]}  g6 {[%clk 0:00:25]} 29. a4 {[%clk 0:00:26]}  d4 {[%clk 0:00:24]} 30. b4 {[%clk 0:00:25]}  Kg7 {[%clk 0:00:24]} 31. b5 {[%clk 0:00:25]}  h5 {[%clk 0:00:23]} 32. a5 {[%clk 0:00:24]}  Rb8 {[%clk 0:00:17]} 33. Rb1 {[%clk 0:00:22]}  h4 {[%clk 0:00:16]} 34. b6 {[%clk 0:00:21]}  axb6 {[%clk 0:00:16]} 35. axb6 {[%clk 0:00:21]}  Qd5 {[%clk 0:00:16]} 36. Rb5 {[%clk 0:00:17]}  Qd7 {[%clk 0:00:14]} 37. Rb4 {[%clk 0:00:15]}  Qd6 {[%clk 0:00:14]} 38. Qxd4+ {[%clk 0:00:08]}  Qxd4 {[%clk 0:00:13]} 39. Rxd4 {[%clk 0:00:08]}  Rxb6 {[%clk 0:00:14]} 40. Rxh4 {[%clk 0:00:09]}  Rb2 {[%clk 0:00:12]} 41. g3 {[%clk 0:00:08]}  f6 {[%clk 0:00:12]} 42. Rc4 {[%clk 0:00:08]}  g5 {[%clk 0:00:12]} 43. Kg2 {[%clk 0:00:09]}  Kg6 {[%clk 0:00:12]} 44. Kf3 {[%clk 0:00:06]}  Rb3+ {[%clk 0:00:12]} 45. Kg2 {[%clk 0:00:07]}  Ra3 {[%clk 0:00:12]} 46. Re4 {[%clk 0:00:07]}  Rb3 {[%clk 0:00:12]} 47. Re3 {[%clk 0:00:07]}  Rb4 {[%clk 0:00:12]} 48. Kf3 {[%clk 0:00:08]}  Rb2 {[%clk 0:00:12]} 49. g4 {[%clk 0:00:06]}  Ra2 {[%clk 0:00:11]} 50. Kg3 {[%clk 0:00:06]}  Rb2 {[%clk 0:00:11]} 51. f4 {[%clk 0:00:06]}  Rb4 {[%clk 0:00:08]} 52. f5+ {[%clk 0:00:06]}  Kf7 {[%clk 0:00:08]} 53. Rc3 {[%clk 0:00:06]}  Rb7 {[%clk 0:00:08]} 54. Kf3 {[%clk 0:00:06]}  Ra7 {[%clk 0:00:07]} 55. Ke4 {[%clk 0:00:06]}  Re7+ {[%clk 0:00:07]} 56. Kd5 {[%clk 0:00:07]}  Rd7+ {[%clk 0:00:07]} 57. Kc6 {[%clk 0:00:07]}  Rd8 {[%clk 0:00:06]} 58. Rb3 {[%clk 0:00:07]}  Rc8+ {[%clk 0:00:04]} 59. Kd7 {[%clk 0:00:06]}  Rc1 {[%clk 0:00:03]} 60. Rb7 {[%clk 0:00:06]}  Rc3 {[%clk 0:00:02]} 61. Kd6+ {[%clk 0:00:06]}  Kf8 {[%clk 0:00:01]} 62. Ke6 {[%clk 0:00:06]}  Rc6+ {[%clk 0:00:01]} 63. Kd5 {[%clk 0:00:07]}  Ra6 {[%clk 0:00:01]} 64. Rd7 {[%clk 0:00:06]}  Ra3 {[%clk 0:00:01]} 65. Ke6 {[%clk 0:00:06]} 1-0


[Site "https://www.chess.com"]

[Event "Titled Tuesday Blitz June 15 2021"]
[White "Harutyunyan, Tigran K."]
[Black "Khumalo, Keith"]
[WhiteFideId "13303635"]
[BlackFideId "14319470"]
[WhiteElo "2444"]
[BlackElo "1992"]
[Result "1-0"]
[Round "03"]
[TimeControl "180+1"]
[Date "2021.06.15"]
[WhiteClock "0:01:36"]
[BlackClock "0:01:35"]

1. c4 {[%clk 0:02:58]}  Nf6 {[%clk 0:02:59]} 2. Nc3 {[%clk 0:02:57]}  g6 {[%clk 0:02:59]} 3. Nf3 {[%clk 0:02:56]}  Bg7 {[%clk 0:02:59]} 4. d4 {[%clk 0:02:57]}  O-O {[%clk 0:02:59]} 5. Bg5 {[%clk 0:02:56]}  d6 {[%clk 0:02:59]} 6. e3 {[%clk 0:02:56]}  c5 {[%clk 0:03:00]} 7. d5 {[%clk 0:02:57]}  a6 {[%clk 0:02:58]} 8. a4 {[%clk 0:02:56]}  Bf5 {[%clk 0:02:58]} 9. Nd2 {[%clk 0:02:55]}  h6 {[%clk 0:02:58]} 10. Bh4 {[%clk 0:02:55]}  g5 {[%clk 0:02:58]} 11. Bg3 {[%clk 0:02:55]}  Qa5 {[%clk 0:02:55]} 12. Be2 {[%clk 0:02:51]}  Bg6 {[%clk 0:02:55]} 13. O-O {[%clk 0:02:51]}  Nbd7 {[%clk 0:02:55]} 14. f4 {[%clk 0:02:43]}  gxf4 {[%clk 0:02:52]} 15. exf4 {[%clk 0:02:44]}  Bf5 {[%clk 0:02:51]} 16. Bh4 {[%clk 0:02:40]}  e6 {[%clk 0:02:40]} 17. g4 {[%clk 0:02:40]}  Bh7 {[%clk 0:02:40]} 18. g5 {[%clk 0:02:38]}  Ne8 {[%clk 0:02:37]} 19. Bg4 {[%clk 0:02:11]}  Nc7 {[%clk 0:02:28]} 20. f5 {[%clk 0:02:11]}  exf5 {[%clk 0:02:25]} 21. Bxf5 {[%clk 0:02:10]}  Bxf5 {[%clk 0:02:25]} 22. Rxf5 {[%clk 0:02:11]}  Ne5 {[%clk 0:02:15]} 23. Kh1 {[%clk 0:02:06]}  Ng6 {[%clk 0:02:13]} 24. Qg4 {[%clk 0:02:01]}  Bxc3 {[%clk 0:01:57]} 25. bxc3 {[%clk 0:01:51]}  Qxc3 {[%clk 0:01:57]} 26. Rd1 {[%clk 0:01:50]}  Qd4 {[%clk 0:01:57]} 27. Ne4 {[%clk 0:01:38]}  Qg7 {[%clk 0:01:35]} 28. Nf6+ {[%clk 0:01:36]}  Kh8 {[%clk 0:01:35]} 29. gxh6 {[%clk 0:01:36]} 1-0


[Site "https://www.chess.com"]

[Event "Titled Tuesday Blitz June 15 2021"]
[White "Howell, David W L"]
[Black "Vakhlamov, Igor L."]
[WhiteFideId "410608"]
[BlackFideId "24126748"]
[WhiteElo "2643"]
[BlackElo "2405"]
[Result "1-0"]
[Round "03"]
[TimeControl "180+1"]
[Date "2021.06.15"]
[WhiteClock "0:00:11"]
[BlackClock "0:00:17"]

1. d4 {[%clk 0:03:00]}  Nf6 {[%clk 0:02:58]} 2. Bf4 {[%clk 0:03:01]}  d5 {[%clk 0:02:54]} 3. e3 {[%clk 0:03:00]}  c5 {[%clk 0:02:53]} 4. Nd2 {[%clk 0:02:56]}  Nc6 {[%clk 0:02:52]} 5. Ngf3 {[%clk 0:02:44]}  Bf5 {[%clk 0:02:42]} 6. c3 {[%clk 0:02:41]}  e6 {[%clk 0:02:42]} 7. Qb3 {[%clk 0:02:36]}  Qc8 {[%clk 0:02:26]} 8. Nh4 {[%clk 0:02:35]}  Be4 {[%clk 0:02:22]} 9. Nxe4 {[%clk 0:02:21]}  Nxe4 {[%clk 0:02:23]} 10. Nf3 {[%clk 0:02:20]}  Bd6 {[%clk 0:01:51]} 11. Bxd6 {[%clk 0:02:18]}  Nxd6 {[%clk 0:01:52]} 12. Qa3 {[%clk 0:02:08]}  Ne4 {[%clk 0:01:47]} 13. dxc5 {[%clk 0:02:08]}  O-O {[%clk 0:01:45]} 14. Bd3 {[%clk 0:02:04]}  a5 {[%clk 0:01:43]} 15. O-O {[%clk 0:02:02]}  f5 {[%clk 0:01:39]} 16. Rfd1 {[%clk 0:02:01]}  Qc7 {[%clk 0:01:35]} 17. c4 {[%clk 0:01:55]}  dxc4 {[%clk 0:00:57]} 18. Bxc4 {[%clk 0:01:51]}  Qe7 {[%clk 0:00:57]} 19. Nd4 {[%clk 0:01:12]}  Rf6 {[%clk 0:00:47]} 20. Rac1 {[%clk 0:00:48]}  Kh8 {[%clk 0:00:43]} 21. Nxc6 {[%clk 0:00:39]}  bxc6 {[%clk 0:00:44]} 22. Bd3 {[%clk 0:00:39]}  Raf8 {[%clk 0:00:37]} 23. Qxa5 {[%clk 0:00:34]}  Rh6 {[%clk 0:00:31]} 24. Bxe4 {[%clk 0:00:15]}  fxe4 {[%clk 0:00:32]} 25. g3 {[%clk 0:00:13]}  Qg5 {[%clk 0:00:20]} 26. Rd2 {[%clk 0:00:06]}  Qh5 {[%clk 0:00:17]} 27. h4 {[%clk 0:00:06]}  g5 {[%clk 0:00:17]} 28. Rd8 {[%clk 0:00:06]}  Rf6 {[%clk 0:00:17]} 29. Rxf8+ {[%clk 0:00:05]}  Rxf8 {[%clk 0:00:18]} 30. Qc3+ {[%clk 0:00:05]}  Kg8 {[%clk 0:00:17]} 31. Qe5 {[%clk 0:00:05]}  Qf3 {[%clk 0:00:17]} 32. Qxg5+ {[%clk 0:00:05]}  Kh8 {[%clk 0:00:17]} 33. Qe5+ {[%clk 0:00:05]}  Kg8 {[%clk 0:00:18]} 34. Qxe6+ {[%clk 0:00:05]}  Kg7 {[%clk 0:00:18]} 35. Rf1 {[%clk 0:00:05]}  Rf6 {[%clk 0:00:17]} 36. Qd7+ {[%clk 0:00:05]}  Kg6 {[%clk 0:00:17]} 37. Qh3 {[%clk 0:00:05]}  h5 {[%clk 0:00:16]} 38. Qg2 {[%clk 0:00:05]}  Qf5 {[%clk 0:00:16]} 39. b4 {[%clk 0:00:05]}  Re6 {[%clk 0:00:16]} 40. Rd1 {[%clk 0:00:05]}  Qe5 {[%clk 0:00:16]} 41. Rd6 {[%clk 0:00:05]}  Kf5 {[%clk 0:00:15]} 42. Rxe6 {[%clk 0:00:05]}  Kxe6 {[%clk 0:00:16]} 43. Qh3+ {[%clk 0:00:06]}  Kd5 {[%clk 0:00:16]} 44. Qf1 {[%clk 0:00:06]}  Qb2 {[%clk 0:00:15]} 45. Qd1+ {[%clk 0:00:07]}  Ke6 {[%clk 0:00:16]} 46. Qb3+ {[%clk 0:00:07]}  Qxb3 {[%clk 0:00:15]} 47. axb3 {[%clk 0:00:08]}  Kf5 {[%clk 0:00:16]} 48. Kg2 {[%clk 0:00:08]}  Kg4 {[%clk 0:00:17]} 49. b5 {[%clk 0:00:08]}  cxb5 {[%clk 0:00:17]} 50. c6 {[%clk 0:00:09]}  b4 {[%clk 0:00:16]} 51. c7 {[%clk 0:00:10]}  Kf5 {[%clk 0:00:17]} 52. c8=Q+ {[%clk 0:00:11]} 1-0


[Site "https://www.chess.com"]

[Event "Titled Tuesday Blitz June 15 2021"]
[White "Ivanisevic, Ivan"]
[Black "Svane, Rasmus"]
[WhiteFideId "912417"]
[BlackFideId "4657101"]
[WhiteElo "2499"]
[BlackElo "2669"]
[Result "1/2-1/2"]
[Round "03"]
[TimeControl "180+1"]
[Date "2021.06.15"]
[WhiteClock "0:00:05"]
[BlackClock "0:00:07"]

1. d4 {[%clk 0:03:00]}  d5 {[%clk 0:02:59]} 2. c4 {[%clk 0:03:00]}  e6 {[%clk 0:03:00]} 3. Nc3 {[%clk 0:03:00]}  h6 {[%clk 0:03:00]} 4. Nf3 {[%clk 0:02:53]}  Nf6 {[%clk 0:03:00]} 5. g3 {[%clk 0:02:51]}  Bd6 {[%clk 0:02:59]} 6. Bg2 {[%clk 0:02:51]}  O-O {[%clk 0:03:00]} 7. O-O {[%clk 0:02:49]}  Nc6 {[%clk 0:03:01]} 8. c5 {[%clk 0:02:07]}  Be7 {[%clk 0:03:00]} 9. Rb1 {[%clk 0:02:08]}  Ne4 {[%clk 0:02:48]} 10. Qc2 {[%clk 0:02:03]}  f5 {[%clk 0:02:43]} 11. b4 {[%clk 0:02:01]}  Bf6 {[%clk 0:02:43]} 12. Rd1 {[%clk 0:01:52]}  a6 {[%clk 0:02:42]} 13. a3 {[%clk 0:01:37]}  Bd7 {[%clk 0:02:41]} 14. Bb2 {[%clk 0:01:36]}  Be8 {[%clk 0:02:39]} 15. e3 {[%clk 0:01:32]}  Bg6 {[%clk 0:02:32]} 16. Ne2 {[%clk 0:01:31]}  Bh7 {[%clk 0:02:31]} 17. Qb3 {[%clk 0:01:23]}  Qe8 {[%clk 0:02:10]} 18. Ne1 {[%clk 0:01:22]}  Bg6 {[%clk 0:01:58]} 19. f3 {[%clk 0:01:20]}  Ng5 {[%clk 0:01:59]} 20. Nf4 {[%clk 0:01:15]}  Bf7 {[%clk 0:01:59]} 21. Ned3 {[%clk 0:01:12]}  Rd8 {[%clk 0:01:57]} 22. Bc3 {[%clk 0:01:11]}  e5 {[%clk 0:01:51]} 23. dxe5 {[%clk 0:01:07]}  Nxe5 {[%clk 0:01:51]} 24. Nxe5 {[%clk 0:01:06]}  Bxe5 {[%clk 0:01:52]} 25. Qb2 {[%clk 0:01:01]}  Bxc3 {[%clk 0:01:43]} 26. Qxc3 {[%clk 0:01:02]}  Qe7 {[%clk 0:01:42]} 27. Re1 {[%clk 0:00:54]}  Rfe8 {[%clk 0:01:39]} 28. Rbd1 {[%clk 0:00:54]}  c6 {[%clk 0:01:37]} 29. h4 {[%clk 0:00:53]}  Nh7 {[%clk 0:01:37]} 30. e4 {[%clk 0:00:53]}  dxe4 {[%clk 0:01:21]} 31. Rxd8 {[%clk 0:00:52]}  Qxd8 {[%clk 0:01:22]} 32. fxe4 {[%clk 0:00:52]}  fxe4 {[%clk 0:01:23]} 33. Bxe4 {[%clk 0:00:46]}  Nf6 {[%clk 0:01:22]} 34. Bf3 {[%clk 0:00:47]}  Rxe1+ {[%clk 0:01:18]} 35. Qxe1 {[%clk 0:00:47]}  Qd4+ {[%clk 0:01:18]} 36. Kg2 {[%clk 0:00:40]}  Qb2+ {[%clk 0:01:15]} 37. Qe2 {[%clk 0:00:40]}  Qxa3 {[%clk 0:01:12]} 38. Qd2 {[%clk 0:00:40]}  Qa2 {[%clk 0:01:10]} 39. Qxa2 {[%clk 0:00:37]}  Bxa2 {[%clk 0:01:11]} 40. g4 {[%clk 0:00:35]}  Kf7 {[%clk 0:01:04]} 41. g5 {[%clk 0:00:34]}  hxg5 {[%clk 0:01:05]} 42. hxg5 {[%clk 0:00:35]}  Nd7 {[%clk 0:01:04]} 43. Kf2 {[%clk 0:00:27]}  Ne5 {[%clk 0:01:02]} 44. Be4 {[%clk 0:00:27]}  Be6 {[%clk 0:00:49]} 45. Ke3 {[%clk 0:00:27]}  Ke7 {[%clk 0:00:42]} 46. Kd4 {[%clk 0:00:27]}  Nf7 {[%clk 0:00:42]} 47. Ng6+ {[%clk 0:00:22]}  Ke8 {[%clk 0:00:35]} 48. Nf4 {[%clk 0:00:18]}  Ke7 {[%clk 0:00:36]} 49. Ng6+ {[%clk 0:00:17]}  Kd8 {[%clk 0:00:36]} 50. Nf8 {[%clk 0:00:11]}  Nxg5 {[%clk 0:00:36]} 51. Ke5 {[%clk 0:00:11]}  Ke7 {[%clk 0:00:33]} 52. Nxe6 {[%clk 0:00:07]}  Nxe6 {[%clk 0:00:32]} 53. Bf5 {[%clk 0:00:08]}  Nd8 {[%clk 0:00:30]} 54. Bc8 {[%clk 0:00:07]}  g6 {[%clk 0:00:28]} 55. Kf4 {[%clk 0:00:05]}  Kf6 {[%clk 0:00:28]} 56. Kg4 {[%clk 0:00:05]}  Kf7 {[%clk 0:00:07]} 57. Kg5 {[%clk 0:00:05]}  Ne6+ {[%clk 0:00:06]} 58. Kg4 {[%clk 0:00:04]}  Nd8 {[%clk 0:00:07]} 59. Kg5 {[%clk 0:00:04]}  Kg7 {[%clk 0:00:07]} 60. Kg4 {[%clk 0:00:04]}  Kf6 {[%clk 0:00:08]} 61. Kf4 {[%clk 0:00:05]}  Ke7 {[%clk 0:00:07]} 62. Kg4 {[%clk 0:00:05]}  Kf7 {[%clk 0:00:07]} 1/2-1/2


[Site "https://www.chess.com"]

[Event "Titled Tuesday Blitz June 15 2021"]
[White "Jia, Haoxiang"]
[Black "Khusnutdinov, Rustam"]
[WhiteFideId "8602999"]
[BlackFideId "13701703"]
[WhiteElo "2634"]
[BlackElo "2571"]
[Result "0-1"]
[Round "03"]
[TimeControl "180+1"]
[Date "2021.06.15"]
[WhiteClock "0:00:28"]
[BlackClock "0:01:37"]

1. Nf3 {[%clk 0:02:58]}  d5 {[%clk 0:02:57]} 2. c4 {[%clk 0:02:57]}  d4 {[%clk 0:02:57]} 3. b4 {[%clk 0:02:56]}  g5 {[%clk 0:02:57]} 4. Bb2 {[%clk 0:02:52]}  Bg7 {[%clk 0:02:56]} 5. e3 {[%clk 0:02:50]}  e5 {[%clk 0:02:50]} 6. exd4 {[%clk 0:02:42]}  exd4 {[%clk 0:02:49]} 7. Bd3 {[%clk 0:02:31]}  g4 {[%clk 0:02:41]} 8. Qe2+ {[%clk 0:02:31]}  Be6 {[%clk 0:02:37]} 9. Ne5 {[%clk 0:02:21]}  Nd7 {[%clk 0:02:16]} 10. Bxd4 {[%clk 0:01:54]}  Nxe5 {[%clk 0:02:12]} 11. Bxe5 {[%clk 0:01:54]}  Bxe5 {[%clk 0:02:12]} 12. Qxe5 {[%clk 0:01:54]}  Qxd3 {[%clk 0:02:13]} 13. Qxh8 {[%clk 0:01:45]}  f6 {[%clk 0:02:11]} 14. Kd1 {[%clk 0:01:11]}  Kf7 {[%clk 0:01:49]} 15. Re1 {[%clk 0:01:06]}  Bf5 {[%clk 0:01:48]} 16. Nc3 {[%clk 0:00:51]}  Rd8 {[%clk 0:01:37]} 17. Nd5 {[%clk 0:00:43]}  Qc2+ {[%clk 0:01:36]} 18. Ke2 {[%clk 0:00:43]}  Qxc4+ {[%clk 0:01:37]} 19. Kd1 {[%clk 0:00:28]}  Qxd5 {[%clk 0:01:37]} 0-1


[Site "https://www.chess.com"]

[Event "Titled Tuesday Blitz June 15 2021"]
[White "Jumabayev, Rinat"]
[Black "Kim, Sergey"]
[WhiteFideId "13702661"]
[BlackFideId "13700570"]
[WhiteElo "2535"]
[BlackElo "2477"]
[Result "1-0"]
[Round "03"]
[TimeControl "180+1"]
[Date "2021.06.15"]
[WhiteClock "0:00:12"]
[BlackClock "0:00:01"]

1. d4 {[%clk 0:03:00]}  Nf6 {[%clk 0:02:59]} 2. Bf4 {[%clk 0:03:01]}  g6 {[%clk 0:02:59]} 3. Nc3 {[%clk 0:02:59]}  d6 {[%clk 0:02:57]} 4. e4 {[%clk 0:02:58]}  c6 {[%clk 0:02:57]} 5. Nf3 {[%clk 0:02:52]}  Bg7 {[%clk 0:02:51]} 6. Qd2 {[%clk 0:02:51]}  b5 {[%clk 0:02:51]} 7. Bd3 {[%clk 0:02:49]}  a6 {[%clk 0:02:44]} 8. a4 {[%clk 0:02:42]}  Bb7 {[%clk 0:02:39]} 9. h3 {[%clk 0:02:28]}  O-O {[%clk 0:02:35]} 10. Qe3 {[%clk 0:01:53]}  b4 {[%clk 0:02:06]} 11. Ne2 {[%clk 0:01:48]}  Nbd7 {[%clk 0:02:05]} 12. O-O {[%clk 0:01:17]}  c5 {[%clk 0:02:03]} 13. c3 {[%clk 0:01:15]}  a5 {[%clk 0:02:01]} 14. Rfd1 {[%clk 0:01:14]}  Qb6 {[%clk 0:01:35]} 15. Ng3 {[%clk 0:01:06]}  Rfe8 {[%clk 0:01:25]} 16. Bb5 {[%clk 0:01:05]}  Bc6 {[%clk 0:01:13]} 17. Bxc6 {[%clk 0:00:22]}  Qxc6 {[%clk 0:01:12]} 18. d5 {[%clk 0:00:20]}  Qb7 {[%clk 0:01:10]} 19. Nd2 {[%clk 0:00:19]}  Nb6 {[%clk 0:01:06]} 20. Qd3 {[%clk 0:00:16]}  Qd7 {[%clk 0:00:50]} 21. Qc2 {[%clk 0:00:15]}  Rac8 {[%clk 0:00:42]} 22. Be3 {[%clk 0:00:14]}  e6 {[%clk 0:00:33]} 23. cxb4 {[%clk 0:00:13]}  cxb4 {[%clk 0:00:29]} 24. Qd3 {[%clk 0:00:12]}  Rb8 {[%clk 0:00:21]} 25. dxe6 {[%clk 0:00:12]}  Qxe6 {[%clk 0:00:19]} 26. Bxb6 {[%clk 0:00:12]}  Rxb6 {[%clk 0:00:18]} 27. Nc4 {[%clk 0:00:12]}  Rc6 {[%clk 0:00:11]} 28. Nxa5 {[%clk 0:00:12]}  Rc5 {[%clk 0:00:09]} 29. Nb3 {[%clk 0:00:12]}  Rcc8 {[%clk 0:00:01]} 30. Nd4 {[%clk 0:00:12]} 1-0


[Site "https://www.chess.com"]

[Event "Titled Tuesday Blitz June 15 2021"]
[White "Kalajzic, Ivan"]
[Black "Erdogdu, Mert"]
[WhiteFideId "14506378"]
[BlackFideId "6301495"]
[WhiteElo "2163"]
[BlackElo "2485"]
[Result "0-1"]
[Round "03"]
[TimeControl "180+1"]
[Date "2021.06.15"]
[WhiteClock "0:00:52"]
[BlackClock "0:01:57"]

1. b3 {[%clk 0:03:00]}  g6 {[%clk 0:02:58]} 2. Bb2 {[%clk 0:03:00]}  Nf6 {[%clk 0:02:58]} 3. Bxf6 {[%clk 0:03:01]}  exf6 {[%clk 0:02:59]} 4. c4 {[%clk 0:03:01]}  f5 {[%clk 0:03:00]} 5. Nc3 {[%clk 0:03:02]}  d6 {[%clk 0:03:00]} 6. g3 {[%clk 0:03:02]}  h5 {[%clk 0:03:00]} 7. h4 {[%clk 0:03:01]}  Bh6 {[%clk 0:03:00]} 8. e3 {[%clk 0:03:00]}  Nd7 {[%clk 0:03:01]} 9. Bg2 {[%clk 0:03:00]}  Nf6 {[%clk 0:03:01]} 10. Nge2 {[%clk 0:03:00]}  Ng4 {[%clk 0:03:01]} 11. Nf4 {[%clk 0:02:45]}  O-O {[%clk 0:03:01]} 12. Qe2 {[%clk 0:02:22]}  Re8 {[%clk 0:02:59]} 13. O-O-O {[%clk 0:02:17]}  c6 {[%clk 0:02:56]} 14. f3 {[%clk 0:02:09]}  Nf6 {[%clk 0:02:51]} 15. Rhe1 {[%clk 0:01:47]}  Qa5 {[%clk 0:02:47]} 16. d4 {[%clk 0:01:44]}  Qxc3+ {[%clk 0:02:44]} 17. Qc2 {[%clk 0:01:35]}  Qxc2+ {[%clk 0:02:39]} 18. Kxc2 {[%clk 0:01:35]}  a5 {[%clk 0:02:40]} 19. a3 {[%clk 0:01:32]}  Bd7 {[%clk 0:02:40]} 20. Kd3 {[%clk 0:01:31]}  Bf8 {[%clk 0:02:31]} 21. e4 {[%clk 0:01:30]}  fxe4+ {[%clk 0:02:30]} 22. fxe4 {[%clk 0:01:31]}  Ng4 {[%clk 0:02:28]} 23. Rf1 {[%clk 0:01:28]}  Bh6 {[%clk 0:02:17]} 24. Rf3 {[%clk 0:01:15]}  Re7 {[%clk 0:02:16]} 25. Rdf1 {[%clk 0:01:15]}  Rae8 {[%clk 0:02:16]} 26. Nh3 {[%clk 0:01:02]}  Nh2 {[%clk 0:02:14]} 27. Ng5 {[%clk 0:01:01]}  Bxg5 {[%clk 0:02:13]} 28. hxg5 {[%clk 0:01:00]}  Nxf3 {[%clk 0:02:06]} 29. Bxf3 {[%clk 0:00:58]}  Bg4 {[%clk 0:02:03]} 30. Bg2 {[%clk 0:00:58]}  Kg7 {[%clk 0:02:01]} 31. d5 {[%clk 0:00:58]}  c5 {[%clk 0:02:01]} 32. Rf6 {[%clk 0:00:58]}  Rd8 {[%clk 0:01:59]} 33. b4 {[%clk 0:00:55]}  axb4 {[%clk 0:01:59]} 34. axb4 {[%clk 0:00:56]}  b6 {[%clk 0:01:58]} 35. e5 {[%clk 0:00:55]}  Rxe5 {[%clk 0:01:58]} 36. bxc5 {[%clk 0:00:52]}  bxc5 {[%clk 0:01:58]} 37. Be4 {[%clk 0:00:52]}  Rxg5 {[%clk 0:01:57]} 0-1


[Site "https://www.chess.com"]

[Event "Titled Tuesday Blitz June 15 2021"]
[White "Khanin, Semen"]
[Black "Flores Quillas, Diego Saul Rodri"]
[WhiteFideId "4111990"]
[BlackFideId "3822508"]
[WhiteElo "2521"]
[BlackElo "2071"]
[Result "1-0"]
[Round "03"]
[TimeControl "180+1"]
[Date "2021.06.15"]
[WhiteClock "0:00:20"]
[BlackClock "0:00:02"]

1. e4 {[%clk 0:02:59]}  c5 {[%clk 0:02:59]} 2. Nf3 {[%clk 0:02:59]}  e6 {[%clk 0:02:58]} 3. d4 {[%clk 0:02:59]}  cxd4 {[%clk 0:02:58]} 4. Nxd4 {[%clk 0:03:00]}  Nf6 {[%clk 0:02:58]} 5. Nc3 {[%clk 0:03:00]}  d6 {[%clk 0:02:55]} 6. Be3 {[%clk 0:02:56]}  a6 {[%clk 0:02:48]} 7. f3 {[%clk 0:02:54]}  Be7 {[%clk 0:02:40]} 8. Qd2 {[%clk 0:02:54]}  O-O {[%clk 0:02:35]} 9. O-O-O {[%clk 0:02:53]}  Nc6 {[%clk 0:02:35]} 10. g4 {[%clk 0:02:51]}  Nd7 {[%clk 0:02:33]} 11. h4 {[%clk 0:02:47]}  Nde5 {[%clk 0:02:30]} 12. Be2 {[%clk 0:02:45]}  Nxd4 {[%clk 0:02:18]} 13. Qxd4 {[%clk 0:02:44]}  b5 {[%clk 0:02:17]} 14. g5 {[%clk 0:02:44]}  Nc6 {[%clk 0:02:15]} 15. Qd2 {[%clk 0:02:42]}  Qa5 {[%clk 0:02:14]} 16. h5 {[%clk 0:02:12]}  b4 {[%clk 0:01:55]} 17. Nb1 {[%clk 0:02:12]}  Qxa2 {[%clk 0:01:49]} 18. Rdg1 {[%clk 0:02:08]}  Bd7 {[%clk 0:01:34]} 19. f4 {[%clk 0:02:01]}  Rfc8 {[%clk 0:01:23]} 20. g6 {[%clk 0:02:00]}  Na5 {[%clk 0:01:18]} 21. gxh7+ {[%clk 0:01:48]}  Kxh7 {[%clk 0:01:06]} 22. h6 {[%clk 0:01:29]}  Nb3+ {[%clk 0:00:39]} 23. Kd1 {[%clk 0:01:29]}  Qxb1+ {[%clk 0:00:36]} 24. Qc1 {[%clk 0:01:29]}  Qxc1+ {[%clk 0:00:27]} 25. Bxc1 {[%clk 0:01:30]}  g6 {[%clk 0:00:28]} 26. cxb3 {[%clk 0:01:29]}  a5 {[%clk 0:00:22]} 27. Bc4 {[%clk 0:01:17]}  a4 {[%clk 0:00:22]} 28. f5 {[%clk 0:01:17]}  exf5 {[%clk 0:00:17]} 29. Bxf7 {[%clk 0:01:17]}  Be8 {[%clk 0:00:15]} 30. Bxe8 {[%clk 0:01:14]}  Rxe8 {[%clk 0:00:16]} 31. exf5 {[%clk 0:01:15]}  gxf5 {[%clk 0:00:16]} 32. Bd2 {[%clk 0:01:10]}  Bf6 {[%clk 0:00:15]} 33. Bxb4 {[%clk 0:01:01]}  axb3 {[%clk 0:00:15]} 34. Ba3 {[%clk 0:00:55]}  Rac8 {[%clk 0:00:09]} 35. Rh3 {[%clk 0:00:44]}  Re4 {[%clk 0:00:05]} 36. Rxb3 {[%clk 0:00:40]}  Rd4+ {[%clk 0:00:05]} 37. Ke2 {[%clk 0:00:39]}  Re8+ {[%clk 0:00:06]} 38. Kf3 {[%clk 0:00:39]}  Kxh6 {[%clk 0:00:06]} 39. Bb4 {[%clk 0:00:32]}  Bg5 {[%clk 0:00:06]} 40. Kf2 {[%clk 0:00:25]}  Rf4+ {[%clk 0:00:02]} 41. Kg2 {[%clk 0:00:21]}  Rg4+ {[%clk 0:00:02]} 42. Kf1 {[%clk 0:00:20]} 1-0


[Site "https://www.chess.com"]